fUST/lending_fUST_20240521
["ID","MTS","AMOUNT","RATE_DAILY","PERIOD"]
[327645306,1716271843773,-604.09061359,0.00034398,7]
[327645308,1716271843782,-324.0,0.00034521,2]
[327645310,1716271843792,-15837.55400794,0.00034567,3]
[327645312,1716271843802,-286.02849764,0.00034568,4]
[327645314,1716271843811,-197.02118229,0.00034568,4]
[327645316,1716271843821,-761.53489438,0.00034568,4]
[327645318,1716271843830,-2210.17715973,0.00034568,4]
[327645320,1716271843840,-1995.01481321,0.00034568,120]
[327645322,1716271843850,-155.31415279,0.00034568,4]
[327645324,1716271843859,-409.91298911,0.00034568,4]
[327645326,1716271843869,-201.35678428,0.00034568,4]
[327645328,1716271843878,-443.16339949,0.00034568,4]
[327645330,1716271843888,-335.44746761,0.00034568,4]
[327645332,1716271843897,-280.0,0.00034568,7]
[327645334,1716271843906,-238.25130232,0.00034568,4]
[327645336,1716271843919,-1408.0992932,0.00034568,4]
[327645338,1716271843928,-155.09515177,0.00034568,4]
[327645340,1716271843937,-2114.69992538,0.00034568,4]
[327645342,1716271843946,-188.26527624,0.00034568,4]
[327645345,1716271843955,-328.32221374,0.00034568,4]
[327645348,1716271843965,-774.27960681,0.00034568,4]
[327645351,1716271843975,-1320.70670575,0.00034568,4]
[327645354,1716271843986,-3077.55559034,0.00034568,10]
[327645357,1716271843995,-192.3538783,0.00034568,4]
[327645359,1716271844005,-181.25970541,0.00034568,4]
[327645362,1716271844016,-531.08730599,0.00034569,4]
[327645365,1716271844026,-3716.71,0.00034569,2]
[327645367,1716271844035,-3716.71,0.00034569,2]
[327645370,1716271844044,-3716.71,0.00034569,2]
[327645373,1716271844054,-3716.71,0.00034569,2]
[327645376,1716271844063,-1219.19477062,0.00034569,2]
[327645451,1716271846332,-442.98490666,0.00034568,4]
[327645452,1716271846342,-213.06927513,0.00034568,4]
[327645454,1716271846351,-190.41810704,0.00034568,2]
[327645455,1716271846361,-923.42013886,0.00034568,4]
[327645456,1716271846371,-2497.51522938,0.00034569,2]
[327645457,1716271846382,-3716.71,0.00034569,2]
[327645458,1716271846391,-3716.71,0.00034569,2]
[327645459,1716271846401,-3716.71,0.00034569,2]
[327645460,1716271846410,-3716.71,0.00034569,2]
[327645461,1716271846420,-3716.71,0.00034569,2]
[327645462,1716271846429,-66194.7622537,0.0003457,2]
[327645490,1716272961201,1000.0,0.00025,60]
[327645510,1716273032632,-266.61015013,0.00018848,7]
[327645511,1716273032641,-155.0418613,0.00018849,2]
[327645513,1716273032651,-8359.30305888,0.00018849,7]
[327645515,1716273032661,-24880.0,0.0001885,2]
[327645517,1716273032670,-162.560857,0.00019,2]
[327645519,1716273032680,-451.9,0.00019865,2]
[327645521,1716273032689,-6894.23889232,0.00019885,2]
[327645523,1716273032698,-3743.21094469,0.00019886,2]
[327645571,1716273038784,-554.95091329,0.00019886,2]
[327645572,1716273038797,-1357.114998,0.00019886,2]
[327645573,1716273038808,-2365.12660346,0.00019886,2]
[327645574,1716273038820,-2433.74424431,0.00019886,2]
[327645575,1716273038831,-166.00645669,0.000199,2]
[327645576,1716273038840,-155.0418613,0.00020912,2]
[327645577,1716273038850,-500.0,0.00020913,2]
[327645578,1716273038860,-213.94580691,0.00020913,2]
[327645579,1716273038871,-200.0,0.0002137,2]
[327645580,1716273038882,-166.666666,0.00021918,2]
[327645581,1716273038891,-166.00645664,0.00022381,2]
[327645582,1716273038901,-166.666666,0.00022431,2]
[327645583,1716273038911,-166.666666,0.00022944,2]
[327645584,1716273038921,-451.9,0.00022968,3]
[327645585,1716273038934,-166.666666,0.00023456,2]
[327645586,1716273038946,-166.666666,0.00023969,2]
[327645587,1716273038957,-235.354873,0.00024384,2]
[327645588,1716273038967,-166.666666,0.00024482,2]
[327645589,1716273038978,-209.27881426,0.00024634,2]
[327645590,1716273038988,-166.00645664,0.00024861,2]
[327645591,1716273038998,-2165.13053614,0.00025,10]
[327645886,1716273046725,-125.45012467,0.00025,10]
[327645888,1716273046735,-163.925815,0.0002502,2]
[327645890,1716273046744,-451.9,0.00026071,5]
[327645892,1716273046754,-166.00645664,0.00027342,2]
[327645894,1716273046763,-1136.74590385,0.0002739,2]
[327645896,1716273046773,-250.20922677,0.000287,2]
[327645898,1716273046782,-1000.0,0.00029,29]
[327645900,1716273046792,-451.9,0.00029174,7]
[327645902,1716273046801,-166.00645664,0.00029823,2]
[327645904,1716273046811,-287.0,0.0003,2]
[327645906,1716273046820,-976.81310001,0.0003,30]
[327645923,1716273046975,-23.18689999,0.0003,30]
[327645925,1716273046986,-235.354873,0.0003031,2]
[327645927,1716273046995,-250.20922677,0.000309,2]
[327645929,1716273047004,-1000.0,0.00031,31]
[327645931,1716273047014,-1000.0,0.00032,32]
[327645933,1716273047026,-451.9,0.00032278,7]
[327645935,1716273047037,-166.00645664,0.00032303,2]
[327645937,1716273047046,-986.45755068,0.0003239,4]
[327645939,1716273047055,-490.89440725,0.00032718,2]
[327645941,1716273047064,-500.0,0.00032718,2]
[327645943,1716273047073,-500.0,0.00032718,2]
[327645945,1716273047083,-500.0,0.00032718,2]
[327645946,1716273047093,-434.25782963,0.00032718,2]
[327645947,1716273047103,-215.01003722,0.00032718,2]
[327645949,1716273047113,-421.93087125,0.00032718,2]
[327645950,1716273047122,-807.86005766,0.00032718,2]
[327645952,1716273047131,-500.0,0.00032718,2]
[327645953,1716273047140,-314.27276491,0.00032718,2]
[327645954,1716273047149,-462.72833998,0.00032718,2]
[327645955,1716273047159,-807.86005766,0.00032718,2]
[327645956,1716273047168,-500.0,0.00032718,2]
[327645957,1716273047179,-500.0,0.00032718,2]
[327645958,1716273047188,-807.86005766,0.00032718,2]
[327645959,1716273047198,-539.73817198,0.00032718,2]
[327645960,1716273047207,-807.86005766,0.00032718,2]
[327645961,1716273047217,-807.86005766,0.00032718,2]
[327645962,1716273047226,-500.0,0.00032718,2]
[327645963,1716273047238,-807.86005766,0.00032718,2]
[327645964,1716273047248,-500.0,0.00032718,2]
[327645965,1716273047258,-807.86005766,0.00032718,2]
[327645966,1716273047267,-807.86005766,0.00032718,2]
[327645967,1716273047278,-807.86005766,0.00032718,2]
[327645968,1716273047287,-807.86005766,0.00032718,2]
[327645969,1716273047296,-807.86005766,0.00032718,2]
[327645970,1716273047306,-807.86005766,0.00032718,2]
[327645971,1716273047316,-705.85674147,0.00032718,2]
[327645972,1716273218366,189.96457126,0.000156,2]
[327646061,1716274234063,-162.560857,0.00019627,2]
[327646063,1716274234074,-266.61015013,0.00019628,7]
[327646065,1716274234084,-163.925815,0.00019635,2]
[327646067,1716274234094,-5367.15516543,0.00020913,7]
[327646078,1716274239435,-266.61015013,0.00019626,7]
[327646079,1716274239445,-2992.14789345,0.00020913,7]
[327646081,1716274239456,-3164.27608254,0.00021,7]
[327646083,1716274239466,-245.9660315,0.00021918,2]
[327646084,1716274239476,-1000.0,0.00022,20]
[327646085,1716274239486,-297.3,0.00022174,3]
[327646086,1716274239496,-211.819385,0.00024384,2]
[327646087,1716274239505,-5337.30376508,0.00025,2]
[327646088,1716274239516,-297.3,0.00025613,5]
[327646089,1716274239526,-763.68618343,0.0002739,2]
[327646090,1716274239536,-297.3,0.00029051,7]
[327646091,1716274239546,-211.819385,0.0003031,2]
[327646092,1716274239556,-1000.0,0.00032,9]
[327646093,1716274239566,-703.96386181,0.00032,2]
[327646094,1716274239575,-166.00645664,0.000324,2]
[327646095,1716274239585,-4224.07535635,0.0003241,2]
[327646096,1716274239595,-297.3,0.0003249,7]
[327646097,1716274239605,-15107.84691284,0.000325,2]
[327646098,1716274239614,-238.42352075,0.000325,2]
[327646099,1716274239624,-417.32360569,0.00032514,2]
[327646100,1716274239634,-3077.55559034,0.00032718,10]
[327646101,1716274239644,-698.10854542,0.00032877,30]
[327646102,1716274239654,-1000.0,0.00033,33]
[327646103,1716274239664,-2455.63964285,0.00034,120]
[327646104,1716274239674,-1000.0,0.00034,34]
[327646105,1716274239684,-2591.87951805,0.00034224,3]
[327646106,1716274239694,-239.0858,0.00034397,2]
[327646107,1716274239703,-4475.42,0.00034482,3]
[327646108,1716274239713,-186.11049841,0.00034491,7]
[327646109,1716274239723,-611.9214516,0.00034491,7]
[327646110,1716274239732,-348.9740421,0.00034491,7]
[327646111,1716274239742,-210.38331739,0.00034491,7]
[327646112,1716274239752,-703.85828332,0.00034491,7]
[327646113,1716274239761,-500.0,0.00034491,7]
[327646114,1716274239771,-703.85828332,0.00034491,7]
[327646115,1716274239780,-238.818502,0.00034491,7]
[327646116,1716274239790,-703.85828332,0.00034491,7]
[327646117,1716274239800,-703.85828332,0.00034491,7]
[327646118,1716274239809,-703.85828332,0.00034491,7]
[327646119,1716274239819,-703.85828332,0.00034491,7]
[327646120,1716274239829,-703.85828332,0.00034491,7]
[327646121,1716274239838,-703.85828332,0.00034491,7]
[327646122,1716274239848,-703.85828332,0.00034491,7]
[327646123,1716274239858,-703.85828333,0.00034491,7]
[327646124,1716274239868,-703.85828332,0.00034491,7]
[327646125,1716274239877,-703.85828332,0.00034491,7]
[327646126,1716274239887,-703.85828332,0.00034491,7]
[327646127,1716274239896,-703.85828332,0.00034491,7]
[327646128,1716274239906,-703.85828332,0.00034491,7]
[327646129,1716274239915,-703.85828332,0.00034491,7]
[327646130,1716274239925,-703.85828332,0.00034491,7]
[327646131,1716274239934,-703.85828332,0.00034491,7]
[327646132,1716274239944,-703.85828332,0.00034491,7]
[327646133,1716274239953,-703.85828332,0.00034491,7]
[327646134,1716274239963,-703.85828332,0.00034491,7]
[327646135,1716274239973,-703.85828332,0.00034491,7]
[327646136,1716274239983,-703.85828332,0.00034491,7]
[327646137,1716274239994,-703.85828332,0.00034491,7]
[327646138,1716274240004,-703.85828332,0.00034491,7]
[327646139,1716274240015,-703.85828332,0.00034491,7]
[327646140,1716274240026,-703.85828332,0.00034491,7]
[327646141,1716274240036,-703.85828332,0.00034491,7]
[327646142,1716274240048,-703.85828332,0.00034491,7]
[327646143,1716274240059,-703.85828332,0.00034491,7]
[327646144,1716274240230,-703.85828332,0.00034491,7]
[327646145,1716274240242,-703.85828332,0.00034491,7]
[327646146,1716274240252,-703.85828332,0.00034491,7]
[327646147,1716274240263,-17184.49067349,0.00034491,3]
[327646148,1716274240273,-281.0,0.000345,8]
[327646149,1716274240283,-171.163985,0.000345,2]
[327646150,1716274240293,-1604.475185,0.000345,15]
[327646151,1716274240304,-1014.68753633,0.000345,120]
[327646152,1716274240314,-6719.55017822,0.00034533,5]
[327646153,1716274240326,-345.59264282,0.00034568,4]
[327646154,1716274240337,-297.25307842,0.00034568,4]
[327646155,1716274240347,-400.0,0.00034568,2]
[327646156,1716274240356,-374.32304896,0.00034568,4]
[327646157,1716274240366,-1569.79094703,0.00034568,2]
[327646158,1716274240376,-464.09985769,0.00034568,30]
[327646159,1716274240385,-159.46296185,0.00034568,4]
[327646160,1716274240395,-179.94963811,0.00034568,2]
[327646161,1716274240407,-280.52180365,0.00034568,4]
[327646162,1716274240416,-243.01137894,0.00034568,4]
[327646163,1716274240426,-294.03302147,0.00034568,4]
[327646164,1716274240435,-2114.69992538,0.00034568,4]
[327646165,1716274240445,-156.4485373,0.00034568,4]
[327646166,1716274240454,-187.74765007,0.00034568,4]
[327646167,1716274240464,-45712.62995686,0.00034568,4]
[327646168,1716274240474,-155.0418613,0.00034568,4]
[327646169,1716274240483,-9726.01545745,0.00034568,4]
[327646170,1716274240493,-245.80563984,0.00034568,4]
[327646171,1716274240502,-189.85857616,0.00034568,2]
[327646172,1716274240512,-292.65525852,0.00034568,4]
[327646173,1716274240522,-4706.83662444,0.00034569,4]
[327646174,1716274240531,-9849.09170298,0.0003457,3]
[327646175,1716274240541,-182140.12591106,0.0003457,2]
[327646176,1716274240555,-1988.33646375,0.0003457,2]
[327646265,1716274255323,3978.76019136,0.000156,2]
[327646266,1716274257491,229.02885613,0.000156,2]
[327646267,1716274261126,155.58127355,0.00015444,2]
[327646268,1716274363695,1717.62384614,9.999e-05,2]
[327646274,1716274950053,862.0,0.00025,60]
[327646276,1716275129276,235.15,0.00016,2]
[327646281,1716275231903,400.0,0.00023,30]
[327646345,1716275439255,-266.61015013,0.0001998,7]
[327646348,1716275439265,-162.560857,0.00019981,2]
[327646350,1716275439276,-1043.31373626,0.0002,10]
[327646352,1716275439286,-8359.30305888,0.00020011,7]
[327646354,1716275439296,-11377.7350864,0.00020012,2]
[327646356,1716275439309,-314.47399217,0.00020012,2]
[327646357,1716275439320,-987.69346001,0.00020012,2]
[327646529,1716275443698,-12220.09746142,0.00020012,2]
[327646531,1716275443714,-254.4,0.00022234,3]
[327646533,1716275443724,-159.04791722,0.000229,2]
[327646535,1716275443734,-167.496942,0.00024384,2]
[327646536,1716275443744,-190.637446,0.00024384,2]
[327646537,1716275443753,-254.4,0.00025667,5]
[327646538,1716275443762,-488.37220147,0.00025775,2]
[327646539,1716275443772,-155.02480397,0.00026574,2]
[327646540,1716275443781,-488.37220147,0.00027602,2]
[327646541,1716275443791,-190.5310777,0.00027671,2]
[327646542,1716275443800,-159.04791722,0.000279,2]
[327646543,1716275443809,-221.60537528,0.00028,2]
[327646544,1716275443819,-1000.0,0.00028999,2]
[327646545,1716275443828,-6774.31694625,0.00029,2]
[327646546,1716275444072,-2570.63110799,0.00029,2]
[327646548,1716275444082,-166.037214,0.00029098,2]
[327646549,1716275444091,-254.4,0.00029101,7]
[327646550,1716275444100,-488.37220147,0.00029428,2]
[327646551,1716275444110,-2061.41923688,0.00029761,2]
[327646553,1716275444323,-34.59473352,0.00029761,2]
[327646554,1716275444335,-190.637446,0.0003031,2]
[327646555,1716275444350,-488.37220147,0.00031255,2]
[327646556,1716275444365,-151.03171666,0.00032053,2]
[327646557,1716275444380,-254.4,0.00032534,7]
[327646558,1716275444395,-302.06343332,0.00032591,4]
[327646559,1716275444412,-488.37220147,0.00033081,2]
[327646560,1716275444426,-604.12686664,0.00033139,7]
[327646561,1716275444438,-1208.25373328,0.00033978,30]
[327646562,1716275444452,-1000.0,0.00033986,2]
[327646563,1716275444468,-2499.99999901,0.00034,4]
[327646564,1716275444481,-1000.0,0.00034,8]
[327646565,1716275444495,-8761.95,0.00034095,3]
[327646566,1716275444509,-531.3,0.00034096,3]
[327646567,1716275444522,-531.31,0.00034097,3]
[327646568,1716275444534,-500.0,0.00034104,7]
[327646569,1716275444549,-410.35354006,0.00034104,7]
[327646570,1716275444562,-500.0,0.00034104,7]
[327646571,1716275444575,-552.21206139,0.00034104,7]
[327646572,1716275444588,-500.0,0.00034104,7]
[327646573,1716275444601,-500.0,0.00034104,7]
[327646574,1716275444614,-153.4795369,0.00034104,7]
[327646575,1716275444626,-500.0,0.00034104,7]
[327646576,1716275444639,-552.21206139,0.00034104,7]
[327646577,1716275444652,-500.0,0.00034104,7]
[327646578,1716275444666,-170.63004917,0.00034104,7]
[327646579,1716275444679,-552.21206139,0.00034104,7]
[327646580,1716275444696,-539.31953374,0.00034104,7]
[327646581,1716275444709,-631.58384078,0.00034104,7]
[327646582,1716275444721,-552.21206139,0.00034104,7]
[327646583,1716275444735,-552.21206139,0.00034104,7]
[327646584,1716275444748,-552.21206139,0.00034104,7]
[327646585,1716275444761,-552.21206139,0.00034104,7]
[327646586,1716275444776,-552.21206139,0.00034104,7]
[327646587,1716275444789,-552.21206139,0.00034104,7]
[327646588,1716275444803,-552.21206139,0.00034104,7]
[327646589,1716275444817,-552.21206139,0.00034104,7]
[327646590,1716275444830,-552.21206139,0.00034104,7]
[327646591,1716275444843,-552.21206139,0.00034104,7]
[327646592,1716275444857,-552.21206139,0.00034104,7]
[327646593,1716275444871,-552.21206139,0.00034104,7]
[327646594,1716275444884,-552.21206139,0.00034104,7]
[327646595,1716275444897,-552.21206139,0.00034104,7]
[327646596,1716275444912,-552.21206139,0.00034104,7]
[327646597,1716275444925,-552.21206139,0.00034104,7]
[327646598,1716275444938,-552.21206139,0.00034104,7]
[327646599,1716275444951,-552.21206139,0.00034104,7]
[327646600,1716275444965,-552.21206139,0.00034104,7]
[327646601,1716275444978,-552.21206139,0.00034104,7]
[327646602,1716275444991,-552.21206139,0.00034104,7]
[327646603,1716275445004,-552.21206139,0.00034104,7]
[327646604,1716275445016,-552.21206139,0.00034104,7]
[327646605,1716275445028,-552.21206139,0.00034104,7]
[327646606,1716275445042,-552.21206139,0.00034104,7]
[327646607,1716275445055,-1000.0,0.00034109,2]
[327646608,1716275445068,-417.32360569,0.00034271,2]
[327646609,1716275445081,-154.4014132,0.00034296,2]
[327646610,1716275445094,-274.7560862,0.00034296,2]
[327646611,1716275445106,-153.0,0.00034296,2]
[327646612,1716275445119,-153.0,0.00034296,2]
[327646613,1716275445133,-153.0,0.00034296,2]
[327646614,1716275445146,-153.0,0.00034296,2]
[327646615,1716275445160,-153.0,0.00034296,2]
[327646616,1716275445172,-153.0,0.00034296,2]
[327646617,1716275445185,-153.0,0.00034296,2]
[327646618,1716275445198,-153.0,0.00034296,2]
[327646619,1716275445212,-377.3925899,0.00034334,2]
[327646620,1716275445225,-4224.07535635,0.00034354,2]
[327646621,1716275445238,-7301.62,0.0003446,3]
[327646622,1716275445250,-13839.85167235,0.0003447,2]
[327646623,1716275445263,-281.0,0.000345,8]
[327646624,1716275445275,-160.0,0.000345,11]
[327646625,1716275445287,-413.7968377,0.00034568,4]
[327646626,1716275445300,-1450.80884896,0.00034568,14]
[327646627,1716275445309,-686.22310435,0.00034568,4]
[327646628,1716275445319,-1000.0,0.00034569,2]
[327646629,1716275445330,-1000.0,0.00034569,2]
[327646630,1716275445339,-1000.0,0.00034569,2]
[327646631,1716275445536,-5072.1689558,0.0003457,15]
[327646632,1716275445560,-166339.022452,0.0003457,2]
[327646633,1716275445571,-153.0,0.00034597,2]
[327646634,1716275445581,-153.0,0.00034597,2]
[327646635,1716275445590,-153.0,0.00034597,2]
[327646636,1716275445599,-153.0,0.00034597,2]
[327646637,1716275445609,-214.42647483,0.000347,7]
[327646638,1716275445619,-8592.24533675,0.0003474,15]
[327646639,1716275445628,-88888.0,0.0003474,5]
[327646640,1716275445638,-151.0,0.0003474,2]
[327646641,1716275445647,-1556.87167,0.0003474,2]
[327646642,1716275445657,-1556.87167,0.0003474,2]
[327646643,1716275445666,-151.0,0.0003474,2]
[327646644,1716275445676,-151.0,0.0003474,2]
[327646645,1716275445685,-151.0,0.0003474,2]
[327646646,1716275445698,-3846.425806,0.0003474,2]
[327646647,1716275445707,-3846.425806,0.0003474,2]
[327646648,1716275445716,-151.0,0.0003474,2]
[327646650,1716275445726,-151.0,0.0003474,2]
[327646652,1716275445735,-456.164218,0.0003474,2]
[327646654,1716275445745,-456.164218,0.0003474,2]
[327646656,1716275445754,-151.0,0.0003474,2]
[327646658,1716275445764,-2000.0,0.000348,120]
[327646660,1716275445777,-1761.0,0.00034812,35]
[327646662,1716275445787,-1761.0,0.00034812,35]
[327646663,1716275445796,-152.12,0.00034815,35]
[327646665,1716275445805,-544.0,0.00034815,35]
[327646667,1716275445814,-553.0,0.00034815,15]
[327646669,1716275445823,-544.0,0.00034815,35]
[327646671,1716275445832,-553.0,0.00034815,15]
[327646673,1716275445841,-1761.0,0.00034822,35]
[327646675,1716275445850,-1761.0,0.00034822,35]
[327646677,1716275445860,-1761.0,0.00034822,35]
[327646679,1716275445869,-1764.85,0.00034824,35]
[327646681,1716275445879,-150.5,0.00034825,35]
[327646683,1716275445888,-150.5,0.00034825,35]
[327646685,1716275445897,-150.5,0.00034825,35]
[327646687,1716275445907,-544.0,0.00034825,35]
[327646689,1716275445917,-553.0,0.00034825,15]
[327646690,1716275445926,-544.0,0.00034825,35]
[327646691,1716275445935,-553.0,0.00034825,15]
[327646692,1716275445945,-544.0,0.00034825,35]
[327646693,1716275445954,-553.0,0.00034825,15]
[327646694,1716275445963,-545.6,0.00034825,35]
[327646696,1716275445972,-556.0,0.00034825,15]
[327646697,1716275445981,-1761.0,0.00034832,35]
[327646699,1716275445990,-1761.0,0.00034832,35]
[327646701,1716275446000,-1761.0,0.00034832,35]
[327646703,1716275446010,-151.71,0.00034834,35]
[327646705,1716275446019,-1761.0,0.00034834,35]
[327646707,1716275446028,-150.5,0.00034835,35]
[327646709,1716275446037,-150.5,0.00034835,35]
[327646711,1716275446046,-150.5,0.00034835,35]
[327646713,1716275446055,-544.0,0.00034835,35]
[327646715,1716275446064,-553.0,0.00034835,15]
[327646717,1716275446074,-544.0,0.00034835,35]
[327646719,1716275446083,-553.0,0.00034835,15]
[327646721,1716275446093,-544.0,0.00034835,35]
[327646723,1716275446102,-553.0,0.00034835,15]
[327646725,1716275446111,-544.0,0.00034835,35]
[327646727,1716275446122,-553.0,0.00034835,15]
[327646729,1716275446132,-350.172823,0.00034835,2]
[327646731,1716275446142,-350.172823,0.00034835,2]
[327646733,1716275446151,-214.669488,0.00034835,2]
[327646735,1716275446162,-151.0,0.00034835,2]
[327646737,1716275446171,-198.345706,0.00034835,2]
[327646738,1716275446181,-151.0,0.00034835,2]
[327646740,1716275446190,-151.0,0.00034835,2]
[327646742,1716275446201,-151.0,0.00034835,2]
[327646743,1716275446210,-1167.33138,0.00034835,2]
[327646744,1716275446220,-1167.33138,0.00034835,2]
[327646745,1716275446229,-151.0,0.00034835,2]
[327646746,1716275446239,-456.164218,0.00034835,2]
[327646747,1716275446249,-456.164218,0.00034835,2]
[327646748,1716275446259,-151.0,0.0003484,2]
[327646749,1716275446269,-151.0,0.0003484,2]
[327646750,1716275446279,-151.0,0.0003484,2]
[327646751,1716275446289,-151.0,0.0003484,2]
[327646752,1716275446298,-160.214844,0.0003484,2]
[327646753,1716275446308,-160.214844,0.0003484,2]
[327646754,1716275446318,-210.178747,0.0003484,2]
[327646755,1716275446329,-210.178747,0.0003484,2]
[327646756,1716275446340,-151.0,0.0003484,2]
[327646757,1716275446349,-151.0,0.0003484,2]
[327646759,1716275446359,-151.0,0.0003484,2]
[327646760,1716275446369,-164.374947,0.0003484,2]
[327646761,1716275446378,-164.374947,0.0003484,2]
[327646762,1716275446388,-151.0,0.0003484,2]
[327646763,1716275446397,-958.66255,0.0003484,2]
[327646764,1716275446407,-958.66255,0.0003484,2]
[327646765,1716275446417,-151.0,0.0003484,2]
[327646766,1716275446426,-1556.87167,0.0003484,2]
[327646767,1716275446435,-1556.87167,0.0003484,2]
[327646768,1716275446444,-151.0,0.0003484,2]
[327646769,1716275446454,-151.0,0.0003484,2]
[327646770,1716275446464,-151.0,0.0003484,2]
[327646771,1716275446473,-3846.425806,0.0003484,2]
[327646772,1716275446483,-3846.425806,0.0003484,2]
[327646773,1716275446492,-7417.15787091,0.0003484,5]
[327646774,1716275446501,-150.5,0.00034844,35]
[327646775,1716275446511,-150.5,0.00034854,35]
[327646776,1716275446521,-220.0,0.00034854,35]
[327646777,1716275446531,-220.0,0.00034854,35]
[327646778,1716275446540,-220.0,0.00034864,35]
[327646779,1716275446550,-220.0,0.00034864,35]
[327646780,1716275446560,-220.0,0.00034864,35]
[327646781,1716275446570,-220.55,0.00034864,35]
[327646782,1716275446581,-310.0,0.00034874,35]
[327646783,1716275446590,-310.0,0.00034874,35]
[327646784,1716275446600,-220.0,0.00034874,35]
[327646785,1716275446610,-220.0,0.00034874,35]
[327646786,1716275446619,-220.0,0.00034874,35]
[327646787,1716275446629,-220.0,0.00034874,35]
[327646788,1716275446639,-2007.31,0.00034874,2]
[327646789,1716275446648,-2007.31,0.00034874,2]
[327646790,1716275446659,-2007.31,0.00034874,2]
[327646791,1716275446668,-2007.31,0.00034874,2]
[327646792,1716275446677,-2007.31,0.00034874,2]
[327646793,1716275446692,-2007.31,0.00034874,2]
[327646794,1716275446701,-2007.31,0.00034874,2]
[327646795,1716275446712,-2007.31,0.00034874,2]
[327646796,1716275446721,-2007.31,0.00034874,2]
[327646797,1716275446732,-2007.31,0.00034874,2]
[327646798,1716275446742,-156.587575,0.00034874,2]
[327646799,1716275446752,-160.214844,0.00034874,2]
[327646800,1716275446763,-160.214844,0.00034874,2]
[327646801,1716275446774,-210.178747,0.00034874,2]
[327646802,1716275446784,-210.178747,0.00034874,2]
[327646803,1716275446795,-151.0,0.00034874,2]
[327646804,1716275446804,-151.0,0.00034874,2]
[327646805,1716275446815,-151.0,0.00034874,2]
[327646806,1716275446825,-277.310004,0.00034874,2]
[327646807,1716275446835,-164.374947,0.00034874,2]
[327646808,1716275446845,-164.374947,0.00034874,2]
[327646809,1716275446855,-152.365109,0.00034874,2]
[327646810,1716275446865,-958.66255,0.00034874,2]
[327646811,1716275446876,-958.66255,0.00034874,2]
[327646812,1716275446886,-151.0,0.00034874,2]
[327646813,1716275446895,-1556.87167,0.00034874,2]
[327646814,1716275446904,-1556.87167,0.00034874,2]
[327646815,1716275446915,-151.0,0.00034874,2]
[327646816,1716275446925,-283.035887,0.00034874,2]
[327646817,1716275446934,-3846.425806,0.00034874,2]
[327646818,1716275446943,-3846.425806,0.00034874,2]
[327646819,1716275446954,-350.172823,0.00034874,2]
[327646820,1716275446964,-350.172823,0.00034874,2]
[327646821,1716275446975,-151.0,0.00034874,2]
[327646822,1716275446985,-151.0,0.00034874,2]
[327646823,1716275446995,-151.0,0.00034874,2]
[327646824,1716275447004,-151.0,0.00034874,2]
[327646825,1716275447014,-1167.33138,0.00034874,2]
[327646826,1716275447023,-1167.33138,0.00034874,2]
[327646827,1716275447034,-151.0,0.00034874,2]
[327646828,1716275447043,-456.164218,0.00034874,2]
[327646829,1716275447052,-456.164218,0.00034874,2]
[327646830,1716275447063,-6144.94805461,0.00034875,4]
[327646831,1716275447073,-169.13599969,0.00034875,4]
[327646832,1716275447083,-155.74539459,0.00034875,4]
[327646833,1716275447092,-2825.87952226,0.00034875,120]
[327646834,1716275447102,-771.85111591,0.00034875,4]
[327646835,1716275447111,-400.0,0.00034875,2]
[327646836,1716275447121,-1786.35657289,0.00034875,4]
[327646837,1716275447130,-1446.41767946,0.00034875,4]
[327646838,1716275447140,-27730.06277247,0.00034875,4]
[327646839,1716275447149,-1494.00930761,0.00034875,4]
[327646840,1716275447160,-309.42741152,0.00034875,4]
[327646841,1716275447169,-15982.57636638,0.00034875,4]
[327646842,1716275447178,-1496.40091695,0.00034875,4]